[Event "*** Titled Tuesday Blitz"]
[Site "Chess.com"]
[Date "2020.10.27"]
[Round "3"]
[White "maximnovik"]
[Black "Chamal_Gedgafov"]
[Result "1-0"]
[WhiteElo "2497"]
[BlackElo "2166"]
[TimeControl "180+1"]
[EndTime "10:28:18 PDT"]
[Termination "maximnovik won by checkmate"]

1. d4 {[%clk 0:03:00.9]} 1... e6 {[%clk 0:02:59.4]} 2. c4 {[%clk 0:03:00.3]}
2... d5 {[%clk 0:02:57.1]} 3. Nc3 {[%clk 0:03:00.4]} 3... Nf6 {[%clk 0:02:56.9]}
4. cxd5 {[%clk 0:03:00.3]} 4... exd5 {[%clk 0:02:56.5]} 5. Bg5 {[%clk
0:03:00.7]} 5... Be7 {[%clk 0:02:56]} 6. e3 {[%clk 0:03:01.1]} 6... O-O {[%clk
0:02:55.9]} 7. Bd3 {[%clk 0:03:01.6]} 7... Nbd7 {[%clk 0:02:56.1]} 8. Qc2 {[%clk
0:02:59.1]} 8... Re8 {[%clk 0:02:55.6]} 9. Nge2 {[%clk 0:02:54.4]} 9... Nf8
{[%clk 0:02:53.9]} 10. O-O-O {[%clk 0:02:51.5]} 10... c6 {[%clk 0:02:53.7]} 11.
h4 {[%clk 0:02:43.1]} 11... b5 {[%clk 0:02:52.1]} 12. Kb1 {[%clk 0:02:41.8]}
12... a5 {[%clk 0:02:51.8]} 13. Nf4 {[%clk 0:02:38.5]} 13... a4 {[%clk 0:02:46]}
14. Nce2 {[%clk 0:02:34.7]} 14... Bd7 {[%clk 0:02:29.2]} 15. Bf5 {[%clk
0:02:26]} 15... Qb6 {[%clk 0:02:23.5]} 16. Bxf6 {[%clk 0:02:22.2]} 16... Bxf6
{[%clk 0:02:19.4]} 17. Rc1 {[%clk 0:02:13.7]} 17... Rec8 {[%clk 0:02:17.6]} 18.
g4 {[%clk 0:02:10.7]} 18... b4 {[%clk 0:02:15.2]} 19. Bxd7 {[%clk 0:01:54.9]}
19... Nxd7 {[%clk 0:02:12.5]} 20. Qf5 {[%clk 0:01:55.2]} 20... Nf8 {[%clk
0:02:02.9]} 21. Nxd5 {[%clk 0:01:51.9]} 21... Qb5 {[%clk 0:01:35]} 22. Nxf6+
{[%clk 0:01:47.1]} 22... gxf6 {[%clk 0:01:35.9]} 23. Qxb5 {[%clk 0:01:44]} 23...
cxb5 {[%clk 0:01:35.7]} 24. Nf4 {[%clk 0:01:44.1]} 24... Rc4 {[%clk 0:01:23.2]}
25. Nd5 {[%clk 0:01:42.8]} 25... Nd7 {[%clk 0:01:21.9]} 26. Rxc4 {[%clk
0:01:41.9]} 26... bxc4 {[%clk 0:01:20.9]} 27. Nxb4 {[%clk 0:01:42.3]} 27... a3
{[%clk 0:01:17.5]} 28. Rc1 {[%clk 0:01:39.8]} 28... Nb6 {[%clk 0:01:13.5]} 29.
e4 {[%clk 0:01:23.5]} 29... axb2 {[%clk 0:00:54.7]} 30. Kxb2 {[%clk 0:01:22.8]}
30... Rc8 {[%clk 0:00:38.7]} 31. d5 {[%clk 0:01:20.3]} 31... Kf8 {[%clk
0:00:22.6]} 32. Nc6 {[%clk 0:01:19.9]} 32... Ra8 {[%clk 0:00:20]} 33. Rc2 {[%clk
0:01:09]} 33... Ke8 {[%clk 0:00:18.7]} 34. Kc3 {[%clk 0:01:03.6]} 34... Kd7
{[%clk 0:00:17.5]} 35. Kd4 {[%clk 0:00:58.8]} 35... Kd6 {[%clk 0:00:17.4]} 36.
f4 {[%clk 0:00:56.8]} 36... Ra3 {[%clk 0:00:17]} 37. e5+ {[%clk 0:00:56.8]}
37... fxe5+ {[%clk 0:00:16.9]} 38. fxe5+ {[%clk 0:00:56.9]} 38... Kd7 {[%clk
0:00:17]} 39. Kc5 {[%clk 0:00:36.3]} 39... Na4+ {[%clk 0:00:16.6]} 40. Kxc4
{[%clk 0:00:34]} 40... Rg3 {[%clk 0:00:15.6]} 41. Kb5 {[%clk 0:00:28.4]} 41...
Nc3+ {[%clk 0:00:14]} 42. Kb6 {[%clk 0:00:24.6]} 42... Nxd5+ {[%clk 0:00:13.4]}
43. Kc5 {[%clk 0:00:21.9]} 43... Nc7 {[%clk 0:00:11.9]} 44. Rd2+ {[%clk
0:00:21.1]} 44... Ke6 {[%clk 0:00:11.7]} 45. Rd6# {[%clk 0:00:20.2]} 1-0

[Event "*** Titled Tuesday Blitz"]
[Site "Chess.com"]
[Date "2020.10.27"]
[Round "3"]
[White "Sergey85Rodchenkov"]
[Black "KaterynaLagno"]
[Result "1-0"]
[WhiteElo "2450"]
[BlackElo "2683"]
[TimeControl "180+1"]
[EndTime "10:28:20 PDT"]
[Termination "Sergey85Rodchenkov won on time"]

1. e4 {[%clk 0:02:58.7]} 1... e5 {[%clk 0:02:59.8]} 2. Nf3 {[%clk 0:02:58.3]}
2... Nc6 {[%clk 0:03:00.5]} 3. Bc4 {[%clk 0:02:58.8]} 3... Nf6 {[%clk
0:02:59.9]} 4. d3 {[%clk 0:02:59.2]} 4... Be7 {[%clk 0:02:59.2]} 5. O-O {[%clk
0:02:59.8]} 5... O-O {[%clk 0:02:59.9]} 6. Re1 {[%clk 0:03:00.3]} 6... d6 {[%clk
0:03:00]} 7. c3 {[%clk 0:03:00.7]} 7... Kh8 {[%clk 0:02:58.1]} 8. Nbd2 {[%clk
0:02:59.5]} 8... Na5 {[%clk 0:02:49.4]} 9. Bb5 {[%clk 0:02:58.8]} 9... a6 {[%clk
0:02:49.8]} 10. Ba4 {[%clk 0:02:59]} 10... b5 {[%clk 0:02:50.6]} 11. Bc2 {[%clk
0:02:59.2]} 11... c5 {[%clk 0:02:51.4]} 12. Nf1 {[%clk 0:02:58.7]} 12... Nc6
{[%clk 0:02:49.7]} 13. Ng3 {[%clk 0:02:58.7]} 13... Be6 {[%clk 0:02:47.2]} 14.
Ng5 {[%clk 0:02:55.2]} 14... Bg4 {[%clk 0:02:45.4]} 15. Nf3 {[%clk 0:02:52]}
15... h6 {[%clk 0:02:35.4]} 16. h3 {[%clk 0:02:52.4]} 16... Be6 {[%clk
0:02:35.5]} 17. d4 {[%clk 0:02:47.5]} 17... cxd4 {[%clk 0:02:33.3]} 18. cxd4
{[%clk 0:02:47.4]} 18... exd4 {[%clk 0:02:31.2]} 19. Nxd4 {[%clk 0:02:42.7]}
19... Nxd4 {[%clk 0:02:31]} 20. Qxd4 {[%clk 0:02:42.8]} 20... Rc8 {[%clk
0:02:31.8]} 21. Bb3 {[%clk 0:02:36.7]} 21... Qd7 {[%clk 0:02:19.1]} 22. Bf4
{[%clk 0:02:34.6]} 22... Rfd8 {[%clk 0:02:08.6]} 23. Red1 {[%clk 0:02:33]} 23...
a5 {[%clk 0:01:57.5]} 24. Qe3 {[%clk 0:02:13.4]} 24... Bf8 {[%clk 0:01:52.7]}
25. e5 {[%clk 0:02:09]} 25... Ne8 {[%clk 0:01:52.3]} 26. exd6 {[%clk 0:02:05.6]}
26... Nxd6 {[%clk 0:01:37.1]} 27. Be5 {[%clk 0:01:50.2]} 27... Kg8 {[%clk
0:01:23.2]} 28. Ne4 {[%clk 0:01:41.5]} 28... Bxb3 {[%clk 0:01:13.2]} 29. axb3
{[%clk 0:01:37.4]} 29... Qe6 {[%clk 0:01:13.5]} 30. Nxd6 {[%clk 0:01:27.8]}
30... Bxd6 {[%clk 0:00:38.8]} 31. Rxd6 {[%clk 0:01:14.2]} 31... Rxd6 {[%clk
0:00:38]} 32. Qg3 {[%clk 0:01:14.5]} 32... f6 {[%clk 0:00:31.2]} 33. Bxd6 {[%clk
0:01:14.3]} 33... Rc2 {[%clk 0:00:26]} 34. Bf4 {[%clk 0:00:59.2]} 34... Rxb2
{[%clk 0:00:24.1]} 35. Bxh6 {[%clk 0:00:55.3]} 35... Qf7 {[%clk 0:00:23.3]} 36.
Be3 {[%clk 0:00:46.4]} 36... Rxb3 {[%clk 0:00:20.2]} 37. Rxa5 {[%clk 0:00:45]}
37... Rb1+ {[%clk 0:00:18.8]} 38. Kh2 {[%clk 0:00:44.6]} 38... Rb4 {[%clk
0:00:10]} 39. Ra8+ {[%clk 0:00:41.9]} 39... Kh7 {[%clk 0:00:09.7]} 40. Rb8
{[%clk 0:00:35.9]} 40... Qd7 {[%clk 0:00:04.9]} 41. Ra8 {[%clk 0:00:19.8]} 41...
Rc4 {[%clk 0:00:04.7]} 42. Ra7 {[%clk 0:00:19.8]} 1-0

[Event "*** Titled Tuesday Blitz"]
[Site "Chess.com"]
[Date "2020.10.27"]
[Round "3"]
[White "Samantha_Ross"]
[Black "aleksey1203borisovi4"]
[Result "1-0"]
[WhiteElo "2324"]
[BlackElo "2500"]
[TimeControl "180+1"]
[EndTime "10:28:20 PDT"]
[Termination "Samantha_Ross won by checkmate"]

1. c4 {[%clk 0:02:59.2]} 1... g6 {[%clk 0:03:00.9]} 2. Nf3 {[%clk 0:03:00.1]}
2... Bg7 {[%clk 0:03:00.4]} 3. g3 {[%clk 0:03:01]} 3... d6 {[%clk 0:02:59.8]} 4.
Bg2 {[%clk 0:03:01.9]} 4... Nc6 {[%clk 0:03:00]} 5. O-O {[%clk 0:03:02.8]} 5...
h5 {[%clk 0:03:00.1]} 6. h4 {[%clk 0:03:01.5]} 6... Nf6 {[%clk 0:02:59]} 7. Nc3
{[%clk 0:03:02]} 7... O-O {[%clk 0:02:58.3]} 8. d4 {[%clk 0:03:02.3]} 8... Bg4
{[%clk 0:02:57.4]} 9. d5 {[%clk 0:03:01.5]} 9... Nb8 {[%clk 0:02:53.3]} 10. Ng5
{[%clk 0:02:51.4]} 10... c6 {[%clk 0:02:51.7]} 11. Re1 {[%clk 0:02:46.3]} 11...
cxd5 {[%clk 0:02:50.8]} 12. Nxd5 {[%clk 0:02:46.9]} 12... Nxd5 {[%clk
0:02:49.4]} 13. Qxd5 {[%clk 0:02:47.4]} 13... Nc6 {[%clk 0:02:48.1]} 14. Be3
{[%clk 0:02:15.5]} 14... Bf5 {[%clk 0:02:24.5]} 15. Be4 {[%clk 0:02:02.2]} 15...
Bxe4 {[%clk 0:02:15.5]} 16. Qxe4 {[%clk 0:02:02.8]} 16... Qa5 {[%clk 0:02:09.7]}
17. Qc2 {[%clk 0:01:40.6]} 17... Rac8 {[%clk 0:02:05.2]} 18. Bd2 {[%clk
0:01:33.9]} 18... Qb6 {[%clk 0:01:59.6]} 19. Bc3 {[%clk 0:01:24.8]} 19... Nb4
{[%clk 0:01:47]} 20. Qb3 {[%clk 0:01:20.3]} 20... Bxc3 {[%clk 0:01:44.3]} 21.
bxc3 {[%clk 0:01:19.1]} 21... Na6 {[%clk 0:01:39.3]} 22. Reb1 {[%clk 0:01:06.4]}
22... Qxb3 {[%clk 0:01:10.6]} 23. axb3 {[%clk 0:01:06.3]} 23... Ra8 {[%clk
0:01:10.7]} 24. f4 {[%clk 0:00:45.5]} 24... Rfc8 {[%clk 0:01:10]} 25. Ra5 {[%clk
0:00:41.5]} 25... Nc5 {[%clk 0:01:08.1]} 26. Kf2 {[%clk 0:00:34.9]} 26... a6
{[%clk 0:01:04.2]} 27. Kf3 {[%clk 0:00:34.2]} 27... Kg7 {[%clk 0:01:02.1]} 28.
Ne4 {[%clk 0:00:33.5]} 28... Nd7 {[%clk 0:01:00.6]} 29. Rba1 {[%clk 0:00:29.8]}
29... Rc7 {[%clk 0:00:56.9]} 30. Nd2 {[%clk 0:00:28.7]} 30... Rac8 {[%clk
0:00:54.9]} 31. b4 {[%clk 0:00:28.4]} 31... Nb6 {[%clk 0:00:54.1]} 32. b5 {[%clk
0:00:27.3]} 32... Nxc4 {[%clk 0:00:52.3]} 33. Nxc4 {[%clk 0:00:22.2]} 33... Rxc4
{[%clk 0:00:53.2]} 34. bxa6 {[%clk 0:00:22.4]} 34... Rxc3+ {[%clk 0:00:53.2]}
35. Kf2 {[%clk 0:00:22.6]} 35... bxa6 {[%clk 0:00:52.6]} 36. Rxa6 {[%clk
0:00:22.2]} 36... R8c7 {[%clk 0:00:49.6]} 37. Ra7 {[%clk 0:00:19.7]} 37... d5
{[%clk 0:00:46.1]} 38. Rxc7 {[%clk 0:00:17.1]} 38... Rxc7 {[%clk 0:00:47]} 39.
Rd1 {[%clk 0:00:16.6]} 39... e6 {[%clk 0:00:47.1]} 40. Rd2 {[%clk 0:00:16]}
40... Kf6 {[%clk 0:00:47.1]} 41. Kf3 {[%clk 0:00:14.8]} 41... Kf5 {[%clk
0:00:47.1]} 42. e3 {[%clk 0:00:15.1]} 42... Rc1 {[%clk 0:00:46.5]} 43. Ra2
{[%clk 0:00:13.7]} 43... Rf1+ {[%clk 0:00:46.2]} 44. Kg2 {[%clk 0:00:13.2]}
44... Rc1 {[%clk 0:00:44.1]} 45. Kf3 {[%clk 0:00:11]} 45... Rc3 {[%clk
0:00:42.4]} 46. Ra7 {[%clk 0:00:10.2]} 46... d4 {[%clk 0:00:41.5]} 47. Rxf7#
{[%clk 0:00:09.7]} 1-0

[Event "*** Titled Tuesday Blitz"]
[Site "Chess.com"]
[Date "2020.10.27"]
[Round "3"]
[White "Artem_0degov"]
[Black "coco_crc"]
[Result "1-0"]
[WhiteElo "2396"]
[BlackElo "2175"]
[TimeControl "180+1"]
[EndTime "10:28:21 PDT"]
[Termination "Artem_0degov won by resignation"]

1. d4 {[%clk 0:03:00.9]} 1... d5 {[%clk 0:02:59.5]} 2. Bf4 {[%clk 0:03:01.3]}
2... Bf5 {[%clk 0:02:58.3]} 3. e3 {[%clk 0:03:01.6]} 3... e6 {[%clk 0:02:58.6]}
4. Bd3 {[%clk 0:03:00.9]} 4... Bg6 {[%clk 0:02:58.6]} 5. Nf3 {[%clk 0:03:00.9]}
5... Nf6 {[%clk 0:02:58.8]} 6. Ne5 {[%clk 0:03:00.5]} 6... c6 {[%clk 0:02:53.1]}
7. h4 {[%clk 0:03:00.8]} 7... Nbd7 {[%clk 0:02:50.2]} 8. h5 {[%clk 0:03:00.7]}
8... Bxd3 {[%clk 0:02:50.2]} 9. Qxd3 {[%clk 0:03:00.2]} 9... Nxe5 {[%clk
0:02:50.3]} 10. Bxe5 {[%clk 0:02:59]} 10... Bd6 {[%clk 0:02:41.4]} 11. h6 {[%clk
0:02:43.4]} 11... g6 {[%clk 0:02:32.7]} 12. Nd2 {[%clk 0:02:40.7]} 12... Bxe5
{[%clk 0:02:31.2]} 13. dxe5 {[%clk 0:02:41.6]} 13... Nd7 {[%clk 0:02:31.5]} 14.
f4 {[%clk 0:02:40.2]} 14... Qb6 {[%clk 0:02:30.1]} 15. O-O-O {[%clk 0:02:38.8]}
15... O-O-O {[%clk 0:02:28.6]} 16. Kb1 {[%clk 0:02:36.4]} 16... Kb8 {[%clk
0:02:26]} 17. Nb3 {[%clk 0:02:29.6]} 17... Nc5 {[%clk 0:02:25]} 18. Nxc5 {[%clk
0:02:27.7]} 18... Qxc5 {[%clk 0:02:25.9]} 19. g4 {[%clk 0:02:26.9]} 19... Qb4
{[%clk 0:02:18.8]} 20. Rhf1 {[%clk 0:02:18]} 20... Rhe8 {[%clk 0:02:16]} 21. a3
{[%clk 0:02:15.2]} 21... Qa4 {[%clk 0:02:10.9]} 22. Qd4 {[%clk 0:02:05.7]} 22...
Qb5 {[%clk 0:01:58.2]} 23. Rf2 {[%clk 0:01:45.4]} 23... c5 {[%clk 0:01:57.9]}
24. Qc3 {[%clk 0:01:29.8]} 24... Rd7 {[%clk 0:01:46.5]} 25. Rfd2 {[%clk
0:01:27.4]} 25... Rc8 {[%clk 0:01:37]} 26. Rd3 {[%clk 0:01:03.7]} 26... Qb6
{[%clk 0:01:33.2]} 27. e4 {[%clk 0:00:56.9]} 27... d4 {[%clk 0:01:28.5]} 28. Qc4
{[%clk 0:00:56.1]} 28... Qc6 {[%clk 0:01:24.6]} 29. a4 {[%clk 0:00:51.6]} 29...
Qxe4 {[%clk 0:01:23.5]} 30. c3 {[%clk 0:00:41.6]} 30... Qxf4 {[%clk 0:01:05.3]}
31. Qb5 {[%clk 0:00:34.6]} 31... Rc6 {[%clk 0:00:56.3]} 32. cxd4 {[%clk
0:00:34]} 32... cxd4 {[%clk 0:00:39.1]} 33. Rb3 {[%clk 0:00:32.4]} 33... Qe4+
{[%clk 0:00:24.2]} 34. Ka2 {[%clk 0:00:27.5]} 34... Qd5 {[%clk 0:00:24.7]} 35.
Qb4 {[%clk 0:00:22.1]} 35... Rb6 {[%clk 0:00:23.4]} 36. Qf8+ {[%clk 0:00:21.8]}
36... Rd8 {[%clk 0:00:22.1]} 37. Qa3 {[%clk 0:00:19.9]} 37... Rxb3 {[%clk
0:00:17.3]} 38. Qxb3 {[%clk 0:00:20.8]} 38... Qxb3+ {[%clk 0:00:16.2]} 39. Kxb3
{[%clk 0:00:21.7]} 39... Rd5 {[%clk 0:00:16.5]} 40. Kc4 {[%clk 0:00:22.2]} 40...
Rxe5 {[%clk 0:00:16.6]} 41. Rxd4 {[%clk 0:00:22.8]} 41... Rg5 {[%clk 0:00:16]}
42. Rf4 {[%clk 0:00:21.7]} 42... Rxg4 {[%clk 0:00:15]} 43. Rxg4 {[%clk
0:00:21.6]} 43... f5 {[%clk 0:00:15.4]} 44. Rd4 {[%clk 0:00:21.2]} 44... Kc7
{[%clk 0:00:15.7]} 45. Kc5 {[%clk 0:00:21.2]} 45... b5 {[%clk 0:00:14.7]} 46.
axb5 {[%clk 0:00:21.1]} 1-0

[Event "*** Titled Tuesday Blitz"]
[Site "Chess.com"]
[Date "2020.10.27"]
[Round "3"]
[White "Euge_chess"]
[Black "Nemsko"]
[Result "0-1"]
[WhiteElo "2095"]
[BlackElo "2352"]
[TimeControl "180+1"]
[EndTime "10:28:21 PDT"]
[Termination "Nemsko won on time"]

1. e4 {[%clk 0:03:00.6]} 1... c5 {[%clk 0:02:58]} 2. c3 {[%clk 0:02:59.4]} 2...
d5 {[%clk 0:02:56.6]} 3. exd5 {[%clk 0:02:59]} 3... Qxd5 {[%clk 0:02:57.5]} 4.
d4 {[%clk 0:02:58.8]} 4... cxd4 {[%clk 0:02:53.9]} 5. cxd4 {[%clk 0:02:58.4]}
5... Nc6 {[%clk 0:02:54.3]} 6. Nf3 {[%clk 0:02:57.9]} 6... Bg4 {[%clk
0:02:54.6]} 7. Be2 {[%clk 0:02:58]} 7... e6 {[%clk 0:02:51.6]} 8. Nc3 {[%clk
0:02:57.2]} 8... Bb4 {[%clk 0:02:51.2]} 9. O-O {[%clk 0:02:57.4]} 9... Qd8
{[%clk 0:02:45.6]} 10. Be3 {[%clk 0:02:56.7]} 10... Nf6 {[%clk 0:02:42.9]} 11.
a3 {[%clk 0:02:49]} 11... Bxc3 {[%clk 0:02:35.7]} 12. bxc3 {[%clk 0:02:48.2]}
12... O-O {[%clk 0:02:33.9]} 13. Qb3 {[%clk 0:02:38.9]} 13... b6 {[%clk
0:02:30.1]} 14. Rfd1 {[%clk 0:02:36.4]} 14... Na5 {[%clk 0:02:21.7]} 15. Qb2
{[%clk 0:02:19.7]} 15... Rc8 {[%clk 0:02:10.3]} 16. Bg5 {[%clk 0:02:14.6]} 16...
h6 {[%clk 0:02:09.1]} 17. Bh4 {[%clk 0:02:13.5]} 17... Qd5 {[%clk 0:01:51.7]}
18. Bxf6 {[%clk 0:01:57.2]} 18... gxf6 {[%clk 0:01:52.6]} 19. Qd2 {[%clk
0:01:57.1]} 19... Kg7 {[%clk 0:01:47.4]} 20. Qf4 {[%clk 0:01:41.5]} 20... Bf5
{[%clk 0:01:34.8]} 21. Nh4 {[%clk 0:01:32.2]} 21... Bg6 {[%clk 0:01:34.9]} 22.
Bf3 {[%clk 0:01:17.8]} 22... Qg5 {[%clk 0:01:25.2]} 23. Nxg6 {[%clk 0:01:10.7]}
23... fxg6 {[%clk 0:01:22.5]} 24. Qxg5 {[%clk 0:01:03.4]} 24... hxg5 {[%clk
0:01:23.4]} 25. Rac1 {[%clk 0:00:52]} 25... Rfd8 {[%clk 0:01:07]} 26. d5 {[%clk
0:00:49.3]} 26... exd5 {[%clk 0:01:05.7]} 27. Rxd5 {[%clk 0:00:43.8]} 27... Rxd5
{[%clk 0:01:03.7]} 28. Bxd5 {[%clk 0:00:42.9]} 28... Rc5 {[%clk 0:01:02.4]} 29.
Ba2 {[%clk 0:00:12.1]} 29... Nc6 {[%clk 0:00:58.2]} 30. Kf1 {[%clk 0:00:11.1]}
30... Ra5 {[%clk 0:00:58.3]} 31. Rd1 {[%clk 0:00:07.2]} 31... Rxa3 {[%clk
0:00:56.2]} 32. Rd7+ {[%clk 0:00:06.5]} 32... Kh6 {[%clk 0:00:50]} 33. Bd5
{[%clk 0:00:06.8]} 33... Ne5 {[%clk 0:00:48.2]} 34. Re7 {[%clk 0:00:02.7]} 34...
a5 {[%clk 0:00:36.3]} 35. Bg8 {[%clk 0:00:02.5]} 35... g4 {[%clk 0:00:32.6]} 36.
h3 {[%clk 0:00:01.4]} 36... gxh3 {[%clk 0:00:30.8]} 37. gxh3 {[%clk 0:00:01.5]}
37... Rxc3 {[%clk 0:00:29.2]} 38. h4 {[%clk 0:00:01.8]} 38... Kh5 {[%clk
0:00:25.1]} 39. Rh7+ {[%clk 0:00:01.2]} 39... Kg4 {[%clk 0:00:25.2]} 40. Kg2
{[%clk 0:00:01.5]} 40... a4 {[%clk 0:00:21.3]} 41. Be6+ {[%clk 0:00:01.6]} 41...
Kf4 {[%clk 0:00:20]} 42. Rg7 {[%clk 0:00:01.2]} 42... a3 {[%clk 0:00:19.3]} 0-1

[Event "*** Titled Tuesday Blitz"]
[Site "Chess.com"]
[Date "2020.10.27"]
[Round "3"]
[White "eljanov"]
[Black "Shubinkirill2003"]
[Result "1/2-1/2"]
[WhiteElo "2876"]
[BlackElo "2674"]
[TimeControl "180+1"]
[EndTime "10:28:22 PDT"]
[Termination "Game drawn by repetition"]

1. Nf3 {[%clk 0:02:58.1]} 1... Nf6 {[%clk 0:02:59.9]} 2. c4 {[%clk 0:02:57.7]}
2... b6 {[%clk 0:02:59.8]} 3. Nc3 {[%clk 0:02:55.9]} 3... Bb7 {[%clk 0:02:59.8]}
4. d4 {[%clk 0:02:55.6]} 4... e6 {[%clk 0:02:59.3]} 5. a3 {[%clk 0:02:52.1]}
5... Ne4 {[%clk 0:02:58.2]} 6. Nxe4 {[%clk 0:02:49.6]} 6... Bxe4 {[%clk
0:02:59.1]} 7. Nd2 {[%clk 0:02:47.5]} 7... Bb7 {[%clk 0:02:58.5]} 8. e4 {[%clk
0:02:47.7]} 8... g6 {[%clk 0:02:57.8]} 9. Bd3 {[%clk 0:02:46]} 9... Bg7 {[%clk
0:02:57.2]} 10. Nf3 {[%clk 0:02:46.5]} 10... d6 {[%clk 0:02:57.2]} 11. Bg5
{[%clk 0:02:43.3]} 11... Qd7 {[%clk 0:02:53.1]} 12. Qd2 {[%clk 0:02:38.9]} 12...
h6 {[%clk 0:02:52.8]} 13. Be3 {[%clk 0:02:38.5]} 13... Nc6 {[%clk 0:02:51.5]}
14. O-O {[%clk 0:02:36.2]} 14... g5 {[%clk 0:02:45.7]} 15. d5 {[%clk 0:02:35.7]}
15... Ne5 {[%clk 0:02:38.2]} 16. Nxe5 {[%clk 0:02:35.2]} 16... dxe5 {[%clk
0:02:31.6]} 17. Rad1 {[%clk 0:02:27]} 17... O-O {[%clk 0:02:30.7]} 18. Qc2
{[%clk 0:02:23.7]} 18... c6 {[%clk 0:02:19.9]} 19. dxc6 {[%clk 0:02:12.7]} 19...
Qxc6 {[%clk 0:02:19.6]} 20. b4 {[%clk 0:02:09.4]} 20... Rad8 {[%clk 0:02:09.3]}
21. f3 {[%clk 0:02:08.5]} 21... Rd7 {[%clk 0:02:01.5]} 22. Be2 {[%clk
0:02:08.5]} 22... Rfd8 {[%clk 0:01:58.3]} 23. c5 {[%clk 0:02:00.9]} 23... bxc5
{[%clk 0:01:55.7]} 24. Qxc5 {[%clk 0:01:55.4]} 24... Qxc5 {[%clk 0:01:40.9]} 25.
Bxc5 {[%clk 0:01:55.1]} 25... a6 {[%clk 0:01:39]} 26. Rxd7 {[%clk 0:01:42.4]}
26... Rxd7 {[%clk 0:01:39.9]} 27. Rd1 {[%clk 0:01:42.5]} 27... Rxd1+ {[%clk
0:01:39.3]} 28. Bxd1 {[%clk 0:01:43.4]} 28... Bf8 {[%clk 0:01:38]} 29. Bxf8
{[%clk 0:01:37.3]} 29... Kxf8 {[%clk 0:01:38.9]} 30. Kf2 {[%clk 0:01:37.4]}
30... Ke7 {[%clk 0:01:37.5]} 31. Ke3 {[%clk 0:01:37.6]} 31... Kd6 {[%clk
0:01:37]} 32. Be2 {[%clk 0:01:28.3]} 32... f5 {[%clk 0:01:35.2]} 33. a4 {[%clk
0:01:26]} 33... f4+ {[%clk 0:01:24.9]} 34. Kd3 {[%clk 0:01:24.3]} 34... Bc6
{[%clk 0:01:24.5]} 35. Kc3 {[%clk 0:01:21.7]} 35... Bxa4 {[%clk 0:01:19.5]} 36.
Bxa6 {[%clk 0:01:21.8]} 36... Kc6 {[%clk 0:01:04.5]} 37. Bc4 {[%clk 0:01:19.4]}
37... Kd6 {[%clk 0:00:56.3]} 38. Kb2 {[%clk 0:01:18.9]} 38... Bd1 {[%clk
0:00:50.2]} 39. Kc1 {[%clk 0:01:16.7]} 39... Ba4 {[%clk 0:00:48.6]} 40. Kd2
{[%clk 0:01:17]} 40... h5 {[%clk 0:00:44.3]} 41. Be2 {[%clk 0:01:13.4]} 41... h4
{[%clk 0:00:41.5]} 42. Kc3 {[%clk 0:01:13.2]} 42... Kc6 {[%clk 0:00:37.4]} 43.
Ba6 {[%clk 0:01:08.8]} 43... Kb6 {[%clk 0:00:30.5]} 44. Bc8 {[%clk 0:01:07.6]}
44... Bb5 {[%clk 0:00:29.8]} 45. Bxe6 {[%clk 0:01:05.6]} 45... Bf1 {[%clk
0:00:29.4]} 46. Bg4 {[%clk 0:01:03.5]} 46... Kb5 {[%clk 0:00:25.2]} 47. Bd7+
{[%clk 0:01:02.3]} 47... Kb6 {[%clk 0:00:25]} 48. Bh3 {[%clk 0:00:40.9]} 48...
Kb5 {[%clk 0:00:24.2]} 49. Kb3 {[%clk 0:00:41]} 49... Bc4+ {[%clk 0:00:21.9]}
50. Ka3 {[%clk 0:00:41.1]} 50... Bf1 {[%clk 0:00:21.8]} 51. Bd7+ {[%clk
0:00:37.8]} 51... Kb6 {[%clk 0:00:21.8]} 52. Bh3 {[%clk 0:00:37.5]} 52... Kb5
{[%clk 0:00:21]} 53. Kb3 {[%clk 0:00:37.9]} 53... Bc4+ {[%clk 0:00:20.7]} 54.
Kc3 {[%clk 0:00:38.4]} 54... Bf1 {[%clk 0:00:20.9]} 55. Bd7+ {[%clk 0:00:38]}
55... Kb6 {[%clk 0:00:21]} 56. Bg4 {[%clk 0:00:37.7]} 56... Kb5 {[%clk
0:00:21.3]} 57. Bd7+ {[%clk 0:00:30.8]} 1/2-1/2

[Event "*** Titled Tuesday Blitz"]
[Site "Chess.com"]
[Date "2020.10.27"]
[Round "3"]
[White "Gogolev_Artemy"]
[Black "ajedrezhoy"]
[Result "1-0"]
[WhiteElo "2515"]
[BlackElo "2239"]
[TimeControl "180+1"]
[EndTime "10:28:25 PDT"]
[Termination "Gogolev_Artemy won on time"]

1. Nf3 {[%clk 0:03:00.9]} 1... c5 {[%clk 0:02:58.3]} 2. c4 {[%clk 0:02:59.7]}
2... Nc6 {[%clk 0:02:52.2]} 3. d4 {[%clk 0:02:58.3]} 3... cxd4 {[%clk
0:02:49.3]} 4. Nxd4 {[%clk 0:02:59.2]} 4... Nf6 {[%clk 0:02:45.2]} 5. Nc3 {[%clk
0:02:57.9]} 5... g6 {[%clk 0:02:44.8]} 6. e4 {[%clk 0:02:54.3]} 6... Nxd4 {[%clk
0:02:40.4]} 7. Qxd4 {[%clk 0:02:52.8]} 7... d6 {[%clk 0:02:39.9]} 8. Be3 {[%clk
0:02:45.7]} 8... Bg7 {[%clk 0:02:39.6]} 9. Be2 {[%clk 0:02:37.6]} 9... O-O
{[%clk 0:02:39]} 10. Qd3 {[%clk 0:02:34]} 10... a6 {[%clk 0:02:26.7]} 11. O-O
{[%clk 0:02:30.8]} 11... Be6 {[%clk 0:02:24.9]} 12. h3 {[%clk 0:02:23.6]} 12...
Nd7 {[%clk 0:02:20.7]} 13. Rfd1 {[%clk 0:02:10.9]} 13... Ne5 {[%clk 0:02:17.2]}
14. Qd2 {[%clk 0:01:59.5]} 14... Nxc4 {[%clk 0:02:13.6]} 15. Bxc4 {[%clk
0:01:59.5]} 15... Bxc4 {[%clk 0:02:12.5]} 16. Rac1 {[%clk 0:01:58.1]} 16... Rc8
{[%clk 0:02:10.7]} 17. Bd4 {[%clk 0:01:55.4]} 17... Bxd4 {[%clk 0:02:08]} 18.
Qxd4 {[%clk 0:01:56.3]} 18... Be6 {[%clk 0:02:07.5]} 19. h4 {[%clk 0:01:52.5]}
19... Qa5 {[%clk 0:02:05.5]} 20. g3 {[%clk 0:01:43.6]} 20... Qc5 {[%clk
0:01:49.8]} 21. Qd2 {[%clk 0:01:38.6]} 21... Qe5 {[%clk 0:01:42.7]} 22. Rc2
{[%clk 0:01:30.8]} 22... f5 {[%clk 0:01:41.2]} 23. exf5 {[%clk 0:01:26.5]} 23...
Bxf5 {[%clk 0:01:39.7]} 24. Rcc1 {[%clk 0:01:25]} 24... Qg7 {[%clk 0:01:25.4]}
25. Re1 {[%clk 0:01:22.5]} 25... Kh8 {[%clk 0:01:19.2]} 26. Qg5 {[%clk
0:01:08.8]} 26... e5 {[%clk 0:01:15]} 27. Rcd1 {[%clk 0:01:06.4]} 27... Rc6
{[%clk 0:01:13.7]} 28. Nd5 {[%clk 0:00:59.2]} 28... h6 {[%clk 0:01:11.7]} 29.
Qd2 {[%clk 0:00:52.1]} 29... Bg4 {[%clk 0:01:10.2]} 30. Rc1 {[%clk 0:00:50]}
30... Rfc8 {[%clk 0:01:04.2]} 31. Rxc6 {[%clk 0:00:47.4]} 31... Rxc6 {[%clk
0:00:42]} 32. Nb4 {[%clk 0:00:36.1]} 32... Rb6 {[%clk 0:00:33.6]} 33. Nd5 {[%clk
0:00:34.8]} 33... Rb5 {[%clk 0:00:32.1]} 34. Ne3 {[%clk 0:00:29.7]} 34... Bf3
{[%clk 0:00:29.3]} 35. Qxd6 {[%clk 0:00:29.3]} 35... Rxb2 {[%clk 0:00:24.9]} 36.
Rc1 {[%clk 0:00:29.3]} 36... Bc6 {[%clk 0:00:19]} 37. Nc4 {[%clk 0:00:21.7]}
37... Rxa2 {[%clk 0:00:17.6]} 38. Nxe5 {[%clk 0:00:20.8]} 38... Kh7 {[%clk
0:00:14.5]} 39. Nxc6 {[%clk 0:00:20.3]} 39... bxc6 {[%clk 0:00:13.7]} 40. Rxc6
{[%clk 0:00:20.8]} 40... Ra1+ {[%clk 0:00:06.6]} 41. Kg2 {[%clk 0:00:20.2]}
41... Qb7 {[%clk 0:00:02.3]} 42. Kh2 {[%clk 0:00:19.8]} 1-0